Cogmind - Beta 13 --- EXPLORER MODE // 2024.06.27 @ 13:08:16 Player: Kino Result: Destroyed by G-34 Mercenary with Small Laser Performance ------------- Evolutions (1) 500 Regions Visited (4) 800 Robots Destroyed (33) 165 Value Destroyed (757) 757 Prototype IDs (0) 0 Alien Tech Used (0) 0 Bonus (25) 25 TOTAL SCORE: 2247 Bonus ------- Follower Combat Kills 25 Cogmind --------- Core Integrity 0/400 Matter 52/300 Energy 100/100 System Corruption 0% Temperature Cool (6) Movement Core (1350) Ox26 Location -9/Storage Parts ------- > --- POWER (1) -------- (None) > --- PROPULSION (2) --- (None) > --- UTILITY (5) ------ Huge Storage Unit Signal Interpreter > --- WEAPON (2) ------- (None) > --- INVENTORY (25) --- Aluminum Leg Aluminum Leg Aluminum Leg Disposable Heat Sink Seismic Detector Propulsion Shielding Medium Armor Plating Peak State ------------ > --- POWER ------------ Ion Engine > --- PROPULSION ------- Aluminum Leg Aluminum Leg > --- UTILITY ---------- Huge Storage Unit Signal Interpreter Core Shielding Utility Shielding Shield Generator > --- WEAPON ----------- Light Assault Rifle Mini Grenade Launcher > --- INVENTORY -------- Light Ion Engine Aluminum Leg Aluminum Leg Aluminum Leg Aluminum Leg Disposable Heat Sink Seismic Detector Mini Grenade Launcher [Rating: 13] Favorites ----------- Power Light Ion Engine Engine Light Ion Engine Propulsion Aluminum Leg Leg Aluminum Leg Utility Core Shielding Device Shield Generator Storage Huge Storage Unit Processor Signal Interpreter Protection Core Shielding Weapon Light Assault Rifle Energy Gun EM Pulse Gun Ballistic Gun Light Assault Rifle Launcher Mini Grenade Launcher Build | -11 -10 -10 -9 -9 ------- Run | Yrd Mat Min Mat Sto Slots Evolved 3 | . 1 . 2 . Power . | . . . . . Propulsion . | . . . . . Utility 3 | . 1 . 2 . Weapon . | . . . . . Parts Attached 22 | 7 3 4 8 . Power 3 | 1 . 1 1 . Engine 3 | 1 . 1 1 . Core . | . . . . . Reactor . | . . . . . Propulsion 6 | 2 . 2 2 . Treads . | . . . . . Leg 6 | 2 . 2 2 . Wheel . | . . . . . Hover . | . . . . . Flight . | . . . . . Utility 8 | 2 3 . 3 . Device 1 | . . . 1 . Storage 3 | 1 2 . . . Processor 1 | . 1 . . . Hackware . | . . . . . Protection 3 | 1 . . 2 . Artifact . | . . . . . Weapon 5 | 2 . 1 2 . Energy Gun 1 | 1 . . . . Energy Cannon . | . . . . . Ballistic Gun 2 | 1 . . 1 . Ballistic Cannon . | . . . . . Launcher 2 | . . 1 1 . Special Weapon . | . . . . . Impact Weapon . | . . . . . Slashing Weapon . | . . . . . Piercing Weapon . | . . . . . Special Melee Weapon . | . . . . . Unidentified Prototypes . | . . . . . Parts Lost 14 | . 1 1 4 8 Power 3 | . . 1 1 1 Propulsion 2 | . . . . 2 Utility 4 | . . . 1 3 Weapon 5 | . 1 . 2 2 Highest Loss Streak 8 | . 1 1 3 8 To Critical Strikes . | . . . . . Average Slot Usage (%) 94 | . 93 99 90 92 Engine 10 | . 12 11 9 8 Leg 23 | . 25 25 20 18 Device 1 | . . . 4 . Storage 11 | . 12 12 10 10 Processor 11 | . 12 12 10 10 Protection 15 | . 12 12 20 28 Energy Gun 2 | . 6 . . . Ballistic Gun 10 | . 12 12 4 8 Launcher 7 | . . 12 10 8 Naked Turns . | . . . . . Heaviest Build 94 | 17 87 88 94 94 Greatest Support 20 | 20 20 20 20 20 Greatest Overweight (x) 26 | . 4 4 4 26 Average Overweight (x) 2 | . 1 4 4 4 Largest Inventory Capacity 25 | 10 25 25 25 25 Average Capacity 23 | 8 20 25 25 25 Most Carried 13 | 5 13 13 9 7 Average Carried 8 | 3 6 11 6 5 Final Capacity 25 | 10 25 25 25 25 Final Carried 13 | 4 13 10 5 7 Class Distribution -------------------- 100% | Hacker-Mutant Dominant Class ---------------- Hacker-Mutant | -10/Materials Hacker-Mutant | -10/Mines Hacker-Mutant | -9/Materials Hacker-Mutant | -9/Storage Resources | -11 -10 -10 -9 -9 ----------- Run | Yrd Mat Min Mat Sto Matter Collected 404 | 120 193 58 33 . Remotely . | . . . . . Salvage Created 694 | . 323 67 304 . Parts 46 | . 14 2 30 . Haulers Intercepted . | . . . . . Recyclers Shooed 1 | . . . 1 . Parts Field Recycled . | . . . . . Retrieved Matter . | . . . . . Parts Self-Destructed . | . . . . . Prevented . | . . . . . Kills | -11 -10 -10 -9 -9 ------- Run | Yrd Mat Min Mat Sto Combat Hostiles Destroyed 20 | . 8 3 9 . Guns 10 | . 8 2 . . AOE 10 | . . 1 9 . Classes Destroyed 9 | . 2 1 6 . Worker 3 | . . . 3 . Builder 7 | . . . 7 . Recycler 1 | . . . 1 . Operator 1 | . . . 1 . Watcher 2 | . . . 2 . Swarmer 4 | . 2 . 2 . Grunt 12 | . 6 2 4 . Sentry 3 | . . . 3 . Assembled 1 | . . 1 . . Best Kill Streak 9 | . 2 2 9 . Combat Bots Only 2 | . 2 2 2 . Max Kills in Single Turn 3 | . 1 1 3 . Gunslinging . | . . . . . Exploded 1 | . . 1 1 . Melee . | . . . . . Uniques/NPCs Destroyed . | . . . . . Combat | -11 -10 -10 -9 -9 -------- Run | Yrd Mat Min Mat Sto Hostile Shots Fired 230 | . 56 13 55 106 Missed 68 | . 13 7 16 32 Damage Taken 1738 | . 301 58 529 850 Core 444 | . 33 8 118 285 Absorbed by Shields 148 | . . . 148 . Redirected to Shielding 72 | . 6 1 25 40 Ignored by Resistances 1164 | . 196 36 416 516 Core Remaining (%) 91 | 100 . 83 . . Volleys Fired 61 | . 27 13 21 . Largest 2 | . 2 2 2 . Hottest 60 | . 60 50 60 . Shots Fired 90 | . 40 14 36 . Gun 64 | . 40 13 11 . Cannon . | . . . . . Launcher 26 | . . 1 25 . Special . | . . . . . Kinetic 51 | . 27 13 11 . Thermal . | . . . . . Explosive 26 | . . 1 25 . Electromagnetic 13 | . 13 . . . Robot Hit Streak 16 | . 9 8 16 . Robot Miss Streak 2 | . 2 1 2 . Penetration Max . | . . . . . Secondary Targets 1 | . 1 . . . Max Gunslinging Chain 1 | . 1 . . . Shots Hit Robots 75 | . 33 12 30 . Core Hits 62 | . 20 6 36 . Critical Kills . | . . . . . Critical Parts Destroyed . | . . . . . Critical Strikes . | . . . . . Melee Attacks . | . . . . . Impact . | . . . . . Slashing . | . . . . . Piercing . | . . . . . Sneak Attacks . | . . . . . Combat Hostiles . | . . . . . Follow-up Attacks . | . . . . . Damage Inflicted 2224 | . 367 126 1728 3 Guns 496 | . 348 86 62 . Cannons . | . . . . . Explosions 1706 | . . 40 1666 . Melee . | . . . . . Ramming 22 | . 19 . . 3 Kinetic 340 | . 192 86 62 . Thermal . | . . . . . Explosive 1706 | . . 40 1666 . Electromagnetic 156 | . 156 . . . Impact . | . . . . . Slashing . | . . . . . Piercing . | . . . . . Highest Corruption . | . . . . . Average Corruption . | . . . . . Corruption Purged . | . . . . . Corruption Blocked . | . . . . . Overload Shots . | . . . . . Overflow Damage 64 | . . . 64 . Projectiles . | . . . . . Explosions 64 | . . . 64 . Melee . | . . . . . Knockbacks . | . . . . . Impact . | . . . . . Kinetic . | . . . . . Secondary . | . . . . . Self-Inflicted Damage 342 | . . . 342 . Shots 20 | . . . 20 . Rammed . | . . . . . Targets Rammed 6 | . 4 1 . 1 Kicked 6 | . 4 1 . 1 Crushed . | . . . . . Highest Temperature 171 | . 171 27 26 19 Average Temperature 45 | . 76 10 6 6 Received Heat Transfer 857 | . 213 72 164 408 Siege Activations . | . . . . . Robots Corrupted . | . . . . . Combat Hostiles . | . . . . . Parts Fried 1 | . 1 . . . Impact Corruptions . | . . . . . Robots Melted . | . . . . . Combat Hostiles . | . . . . . Parts Melted . | . . . . . Heat Transferred . | . . . . . Parts Sabotaged . | . . . . . Parts Stolen . | . . . . . Parts Stripped . | . . . . . Power Chain Reactions 1 | . . . 1 . Alert | -11 -10 -10 -9 -9 ------- Run | Yrd Mat Min Mat Sto Peak Influence 372 | . 115 50 372 74 Initial 53 | . . 4 . 53 Average 65 | . 44 22 174 47 Maximum Alert Level 1 | . . . 1 . Low Security (%) 93 | 100 100 100 68 100 Level 1 6 | . . . 31 . Level 2 . | . . . . . Level 3 . | . . . . . Level 4 . | . . . . . Level 5 . | . . . . . High Security . | . . . . . Max Security . | . . . . . Squads Dispatched 4 | . . . 1 3 Investigation . | . . . . . Extermination . | . . . . . Reinforcement 2 | . . . 1 1 Assault 2 | . . . . 2 Garrison . | . . . . . Intercept . | . . . . . Searches Triggered . | . . . . . Construction Impeded 1 | . . . 1 . Haulers Reinforced . | . . . . . Active Scanning Responses . | . . . . . Cargo Convoy Interrupts . | . . . . . Stealth | -11 -10 -10 -9 -9 --------- Run | Yrd Mat Min Mat Sto Distress Signals 6 | . 2 2 2 . Communications Jammed . | . . . . . Distress Signals . | . . . . . Times Spotted 42 | . 12 3 16 11 Peak Tracking Total 8 | . 4 2 4 8 Tactical Retreats 1 | . . . 1 . Traps | -11 -10 -10 -9 -9 ------- Run | Yrd Mat Min Mat Sto Traps Triggered 1 | . . . 1 . Indirectly . | . . . . . Trap Hack Attempts . | . . . . . Triggered . | . . . . . Disarmed . | . . . . . Reprogrammed . | . . . . . Reused . | . . . . . Traps Extracted . | . . . . . Installed . | . . . . . Triggered . | . . . . . Machines | -11 -10 -10 -9 -9 ---------- Run | Yrd Mat Min Mat Sto Machines Disabled 3 | . . . 3 . Max in Single Turn 2 | . . . 2 . Machines Repaired . | . . . . . Machines Dismantled . | . . . . . Machines Sabotaged . | . . . . . Overloaded Fab Kills . | . . . . . Hacking | -11 -10 -10 -9 -9 --------- Run | Yrd Mat Min Mat Sto Machines Accessed . | . . . . . Terminals . | . . . . . Fabricators . | . . . . . Repair Stations . | . . . . . Recycling Units . | . . . . . Scanalyzers . | . . . . . Garrison Access . | . . . . . Total Hacks . | . . . . . Successful . | . . . . . Failed . | . . . . . Catastrophic . | . . . . . Database Lockouts . | . . . . . Manual . | . . . . . Terminals . | . . . . . Fabricators . | . . . . . Repair Stations . | . . . . . Recycling Units . | . . . . . Scanalyzers . | . . . . . Garrison Access . | . . . . . Terminal Hacks . | . . . . . Fabricator Hacks . | . . . . . Repair Station Hacks . | . . . . . Recycling Unit Hacks . | . . . . . Scanalyzer . | . . . . . Garrison Access Hacks . | . . . . . Unauthorized Hacks . | . . . . . Terminals . | . . . . . Fabricators . | . . . . . Repair Stations . | . . . . . Recycling Units . | . . . . . Scanalyzers . | . . . . . Garrison Access . | . . . . . Data Cores Recovered 1 | . . . 1 . Used . | . . . . . Hacking Detections . | . . . . . Full Trace Events . | . . . . . Feedback Events . | . . . . . Feedback Blocked . | . . . . . Robot Schematics Acquired . | . . . . . Robots Built . | . . . . . Authchips . | . . . . . Time . | . . . . . Total Robot Build Rating . | . . . . . Part Schematics Acquired . | . . . . . Parts Built . | . . . . . Authchips . | . . . . . Time . | . . . . . Total Part Build Rating . | . . . . . Parts Repaired . | . . . . . Time . | . . . . . Parts Recycled . | . . . . . Recycled Matter . | . . . . . Retrieved Matter . | . . . . . Retrieved Components . | . . . . . Parts Scanalyzed . | . . . . . Part Schematics Acquired . | . . . . . Parts Damaged . | . . . . . Bothacking | -11 -10 -10 -9 -9 ------------ Run | Yrd Mat Min Mat Sto Used RIF Installer . | . . . . . Robots Hacked . | . . . . . Non-combat . | . . . . . Combat . | . . . . . Robot Hacks Applied . | . . . . . Relay Couplers Released . | . . . . . Fabnet Peak Effective % . | . . . . . Robots Rewired . | . . . . . Allies Hacked . | . . . . . Hacks Repelled . | . . . . . Allies | -11 -10 -10 -9 -9 -------- Run | Yrd Mat Min Mat Sto Total Allies 2 | . . . . 2 Largest Group 2 | . . . . 2 Highest-Rated Group 62 | . . . . 62 Highest-Rated Ally 31 | . . . . 31 Total Orders . | . . . . . Ally Attacks 11 | . . . . 11 Total Damage 164 | . . . . 164 Kills 1 | . . . . 1 Allies Corrupted . | . . . . . Allies Melted . | . . . . . Intel | -11 -10 -10 -9 -9 ------- Run | Yrd Mat Min Mat Sto Robot Analysis Total . | . . . . . Derelict Logs Recovered 1 | . . 1 . . Drone Launches . | . . . . . Drone Recoveries . | . . . . . Exploration | -11 -10 -10 -9 -9 ------------- Run | Yrd Mat Min Mat Sto Turns Passed 2569 | 69 880 808 560 252 Spaces Moved 761 | 55 329 194 124 59 Core 21 | 20 . . . 1 Treads . | . . . . . Legs 740 | 35 329 194 124 58 Wheels . | . . . . . Hover . | . . . . . Flight . | . . . . . Fastest Speed 50 | 50 120 400 400 400 Average Speed 310 | 94 240 400 400 420 Slowest Speed 1350 | 120 400 400 400 1350 Overloaded Moves . | . . . . . Propulsion Burnouts . | . . . . . Robots Hopped . | . . . . . Cave-ins Triggered . | . . . . . Exploration Rate (%) 26 | 4 48 53 15 13 Regions Visited 4 Branch Regions 2 Pre-discovered Areas . | . . . . . Known Exits Taken 4 | 1 1 1 1 . Unknown Exits Taken . | . . . . . Scrap Searched 1 | . . 1 . . Spaces Dug . | . . . . . Terrain Destroyed 180 | . . 15 165 . Melee . | . . . . . Projectile . | . . . . . AOE 180 | . . 15 165 . Terrain Rammed . | . . . . . Walls Destroyed . | . . . . . Machines Disabled . | . . . . . Actions | -11 -10 -10 -9 -9 --------- Run | Yrd Mat Min Mat Sto Total 890 | 71 384 214 157 64 Wait 10 | . 8 . . 2 Move 757 | 54 328 193 123 59 Hop . | . . . . . Pick Up 28 | 10 12 1 3 2 Fast Attach 1 | 1 . . . . Attach 15 | 6 1 2 6 . Detach . | . . . . . Swap 6 | . 2 2 2 . Drop 6 | . 2 2 2 . Fire 61 | . 27 13 21 . Melee . | . . . . . Ram . | . . . . . Kick 6 | . 4 1 . 1 Crush . | . . . . . Escape Stasis . | . . . . . Rewire . | . . . . . Trap . | . . . . . Miscellaneous . | . . . . . Route ------- -11/Scrapyard -10/Materials (discovered 2 exits: *Mat / *Min) -10/Mines -9/Materials (discovered 2 exits: Min / *Sto) -9/Storage History --------- Turn | Location | Event 3 | -11/Scrapyard | Identified exit to Materials 3 | -11/Scrapyard | Discovered exit to Materials (range 15) 70 | -11/Scrapyard | Entered Materials 70 | -10/Materials | Evolved 1 slot: Utility x1 220 | -10/Materials | Identified exit to Materials 220 | -10/Materials | Discovered exit to Materials (range 3) 319 | -10/Materials | Build established: Hacker-Mutant 506 | -10/Materials | Identified exit to Mines 506 | -10/Materials | Discovered exit to Mines (range 15) 950 | -10/Materials | Entered Mines 951 | -10/Mines | Assembled infested the area 1662 | -10/Mines | Discovered exit to Materials (range 15) 1706 | -10/Mines | Learned location of 2 exits from Materials 1758 | -10/Mines | Entered Materials 1758 | -9/Materials | Evolved 2 slots: Utility x2 1759 | -9/Materials | Identified exit to Mines 1759 | -9/Materials | Identified exit to Storage 2058 | -9/Materials | Lost 3 parts (1p1u1w) 2318 | -9/Materials | Entered Storage 2430 | -9/Storage | Met a pair of Derelict thieves 2559 | -9/Storage | Core integrity fell below 50% 2569 | -9/Storage | Core integrity fell below 20% 2570 | -9/Storage | Destroyed by G-34 Mercenary with Small Laser Last Messages --------------- 02555_ M-13 Machinist repairs L-31 Rogue. 02555_ R-06 Scavenger inserts Carbon-fiber Leg into recycling unit. 02556_ Aluminum Leg destroyed. 02558_ R-06 Scavenger inserts Carbon-fiber Leg into recycling unit. 02559_ Hrd. Light Armor Plating destroyed. 02559_ Knocked back. 02561_ M-13 Machinist repairs G-47 Trooper. 02561_ Utility Shielding destroyed. 02563_ R-06 Scavenger inserts Lgt. Angular Momentum Engine into recycling unit. 02565_ R-06 Scavenger collects Lgt. Angular Momentum Engine. 02566_ R-06 Scavenger inserts Prototype Energy Gun into recycling unit. 02566_ Core Shielding destroyed. 02569_ R-06 Scavenger inserts Imp. Heat Sink into recycling unit. 02569_ R-06 Scavenger collects Carbon-fiber Leg. Map ----- +----------------------------------------------------+ | ?????????????????????????????????????????? | | ?????????????????????????????????????????? | | ?????????????????????????????????????????? | | ?????????????????????????????????????????? | | ?????????????????????????????????????????? | | ?????????????????????????????????????????? | | ?????????????????????????????????????????? | | ?????????????????????????????????????????? | | ?????????????????????????????????????????? | | ?????????????????????????????????????????? | | ????????????????????? ? ???????????######? | | ?????????????????????"%"?????????### ! !#? | | ??????????????? ####+##########T# ! #? | | ?????????????? % % + " #? | | ?????????????? % # #? | | ????????????????""" """ """ # " ! #? | | ?????????????????"" """g """ # # !!#? | | ?????????????????"" """^ """ #########? | | ?????????????# """a """ """ #????????? | | ?????????????# """ """ """ ########## | | ?????????????# # # | | ?????????????# # # | | ?????????????# ^ r^ g m # # | | ????????????????"Y" g g # # | | ?????????????? """ ll g m + """" # | | ?????????? r @b # """" # | | ?????????????# # """" # | | ?????????????################ # """" # | | ????????????????????????????# # # | | ????????????????????????????# ########## | | ????????????????????????????# #????????? | | ????????????????????????????# #????????? | | ????????????????????????????# #????????? | | ????????????????????????????#####????????? | | ?????????????????????????????????????????? | | ?????????????????????????????????????????? | | ?????????????????????????????????????????? | | ?????????????????????????????????????????? | | | | | | | | | | | | | | | | | | | | | | | | | +----------------------------------------------------+ Best States ------------- Heat Dissipation 28 Energy Generation 10 Energy Capacity 250 Matter Stores 300 Matter Capacity 300 Sight Range 16 Terrain Scan Density 10 Armor Coverage 150 Resistance: KI 35 Resistance: TH 35 Resistance: EX 35 Resistance: EM 35 Resistance: I 35 Resistance: S 35 Resistance: P 35 Core Shielding 20 Utility Shielding 33 Evasion (%) 55 Offensive Hacking 20 Item Schematics ----------------- None Robot Schematics ------------------ None Fabricated ------------ Nothing Alien Tech Used ----------------- None Achievements -------------- None Challenges ------------ None Game ------ Seed HardcellGaussLeg Manual? 0 Play Time 00:13:43 Cumulative 29.6 hours Start 2024.06.27 @ 06:14:12 End 2024.06.27 @ 13:08:16 Sessions 1 Manual Loads 0 Difficulty Explorer Special Mode None Game No. 75 Rogue 20 Adventurer 46 Explorer 9 Win Type - Total 0 Types 0/0/0/0/0/0/0/0/0 Lore% 9 Gallery% 31 Achievement% 22 Wizard Run 0 Options --------- Layout 1 ASCII 0 Keyboard 0 Movement Mouse Keybinds 0 Fullscreen 1 Font 24/Smallcaps Map View 50x35 Zoom Use 0% Tactical HUD 1 Map Filters NONE Filters NONE Steam 1 RUN: 8b4cef71-5952-42fe-afb2-73b84f00db99